bitfinex-derivatives/quotes_SOLF0:USTF0_20241120
["timestamp","ask_amount","ask_price","bid_price","bid_amount"]
[1732088383070,2.16541498,236.33,236.26,6.60936487]
[1732088383369,2.08,236.32,236.26,6.60936487]
[1732088383564,2.08,236.31,236.26,6.60936487]
[1732088383769,2.08,236.31,236.28,2.1141]
[1732088384275,2.1139,236.3,236.25,2.1143]
[1732088384475,2.08,236.31,236.25,2.1143]
[1732088384774,2.1139,236.3,236.25,2.1143]
[1732088384976,2.08,236.31,236.24,6.60936487]
[1732088385171,8.68936487,236.31,236.19,1.2589]
[1732088385373,2.1141,236.29,236.21,6.60936487]
[1732088385772,2.08,236.31,236.23,6.60936487]
[1732088386075,2.08,236.31,236.25,6.60936487]
[1732088387273,4.1938,236.31,236.26,2.1143]
[1732088387678,2.08,236.3,236.26,2.1143]
[1732088390073,2.08,236.3,236.29,2.114]
[1732088390680,2.08,236.3,236.27,6.60936487]
[1732088390878,2.08,236.3,236.27,8.72346487]
[1732088391376,2.08,236.3,236.28,2.1141]
[1732088392175,2.08,236.3,236.2,1.57776356]
[1732088392376,2.08,236.3,236.26,6.60936487]
[1732088393080,2.08,236.3,236.25,8.72366487]
[1732088393273,2.08,236.3,236.25,6.60936487]
[1732088393473,2.114,236.29,236.23,2.1145]
[1732088394973,2.1142,236.27,236.22,6.60936487]
[1732088395973,6.60936487,236.29,236.22,6.60936487]
[1732088396379,6.60936487,236.26,236.1,2.60683112]
[1732088396576,6.60936487,236.24,236.15,6.60936487]
[1732088396776,4.20442463,236.23,236.14,6.60936487]
[1732088397482,4.20442463,236.23,236.05,2.4776]
[1732088397678,4.20442463,236.23,236.14,6.60936487]
[1732088397873,2.1148,236.2,236.07,2.53106935]
[1732088398079,6.60936487,236.22,236.13,6.60936487]
[1732088398776,6.60936487,236.22,236.11,2.1156]
[1732088398973,4.20442463,236.23,236.05,2.4776]
[1732088398974,2.12442463,236.23,236.17,6.60936487]
[1732088399172,2.08,236.22,236.05,2.4776]
[1732088399378,4.22461424,236.21,236.06,4.11447527]
[1732088399682,4.22461424,236.21,236.05,2.4776]
[1732088399683,2.1149,236.19,236.15,6.60936487]
[1732088399984,2.1149,236.19,236.12,2.1155]
[1732088400186,2.08,236.21,236.14,6.60936487]
[1732088400479,2.115,236.18,236.14,6.60936487]
[1732088400682,2.08,236.21,236.14,6.60936487]
[1732088401281,6.60936487,236.18,236.09,2.1157]
[1732088401479,6.60936487,236.2,236.12,6.60936487]
[1732088401982,7.84836487,236.2,236.12,6.60936487]
[1732088402477,1.239,236.2,236.14,6.60936487]
[1732088402673,1.244,236.27,236.06,5.76278219]
[1732088402674,2.08,236.19,236.06,5.76278219]
[1732088402875,2.08,236.19,236.05,2.4776]
[1732088402876,4.195,236.18,236.15,6.60936487]
[1732088403078,2.08,236.17,236.15,6.60936487]
[1732088403279,2.08,236.17,236.13,6.60936487]
[1732088404078,2.08,236.17,236.13,8.72476487]
[1732088406881,2.08,236.17,236.15,6.60936487]
[1732088407278,0.19374,236.41,236.24,2.1144]
[1732088407484,0.19374,236.41,236.15,6.60936487]
[1732088407485,6.60936487,236.33,236.25,6.60936487]
[1732088407680,6.60936487,236.31,236.23,6.60936487]
[1732088407879,2.08,236.32,236.23,6.60936487]
[1732088408277,2.1141,236.29,236.23,6.60936487]
[1732088409385,6.60936487,236.31,236.23,6.60936487]
[1732088410384,2.1141,236.28,236.23,6.60936487]
[1732088410589,2.08,236.27,236.23,6.60936487]
[1732088411883,4.1942,236.27,236.23,6.60936487]
[1732088412084,4.1942,236.27,236.2,2.1147]
[1732088412085,2.08,236.27,236.2,2.1147]
[1732088412284,2.08,236.27,236.19,6.60936487]
[1732088412485,4.1942,236.27,236.21,8.72406487]
[1732088413089,4.1942,236.27,236.21,6.60936487]
[1732088413886,2.1143,236.26,236.21,6.60936487]
[1732088415296,2.1144,236.25,236.21,6.60936487]
[1732088415697,2.08,236.27,236.21,6.60936487]
[1732088417196,6.60936487,236.25,236.16,1.197]
[1732088417490,6.60936487,236.25,236.17,6.60936487]
[1732088417885,6.60936487,236.21,236.13,6.60936487]
[1732088418188,2.06,236.2,236.13,6.60936487]
[1732088419388,6.60936487,236.19,236.08,1.2586]
[1732088419594,2.06,236.2,236.13,6.60936487]
[1732088420188,2.1149,236.19,236.13,8.72476487]
[1732088422288,2.06,236.2,236.15,6.60936487]
[1732088422594,4.1748,236.2,236.15,6.60936487]
[1732088423184,2.1149,236.19,236.14,2.1153]
[1732088426094,2.1149,236.19,236.14,8.72466487]
[1732088428894,2.06,236.2,236.12,6.60936487]
[1732088429095,6.60936487,236.19,236.08,1.2586]
[1732088429296,6.60936487,236.19,236.09,6.60936487]
[1732088429998,2.1152,236.16,236.1,2.1157]
[1732088430191,2.08,236.15,236.1,2.1157]
[1732088430992,2.08,236.15,236.11,6.60936487]
[1732088432102,2.08,236.15,236.13,6.60936487]
[1732088432798,2.08,236.14,236.13,6.60936487]
[1732088433399,1.2315,236.24,236.13,8.72476487]
[1732088433400,2.1149,236.19,236.13,8.72476487]
[1732088433599,2.08,236.18,236.15,6.60936487]
[1732088434099,7.81576487,236.27,236.17,6.60936487]
[1732088434299,30.48,236.31,236.22,6.60936487]
[1732088434503,2.08,236.3,236.24,6.60936487]
[1732088434997,2.08,236.29,236.24,6.60936487]
[1732088437298,30.48,236.31,236.26,6.60936487]
[1732088437502,2.06,236.3,236.19,2.52964166]
[1732088437705,2.06,236.3,236.25,6.60936487]
[1732088438405,2.06,236.3,236.19,1.2035]
[1732088438704,2.06,236.3,236.24,6.60936487]
[1732088439107,2.114,236.29,236.24,6.60936487]
[1732088440701,2.06,236.3,236.24,6.60936487]
[1732088441303,4.1739,236.3,236.24,6.60936487]
[1732088441499,2.06,236.3,236.24,6.60936487]
[1732088443408,2.06,236.3,236.25,2.1143]
[1732088444004,30.48,236.31,236.25,2.1143]
[1732088444207,2.06,236.3,236.25,2.1143]
[1732088447207,2.06,236.29,236.25,2.1143]
[1732088447411,2.06,236.28,236.27,2.1141]
[1732088452123,6.60936487,236.36,236.27,2.1141]
[1732088452323,2.1136,236.34,236.27,2.1141]
[1732088454321,2.1136,236.34,236.28,6.60936487]
[1732088454719,2.1136,236.34,236.28,8.72336487]
[1732088455322,2.1136,236.34,236.28,2.114]
[1732088455520,2.1136,236.34,236.28,8.72336487]
[1732088456025,2.1136,236.34,236.29,2.114]
[1732088460331,2.1136,236.33,236.29,2.114]
[1732088460829,2.1136,236.33,236.28,6.60936487]
[1732088461431,2.1136,236.33,236.28,8.72336487]
[1732088463131,2.06,236.32,236.28,8.72336487]
[1732088467942,4.1737,236.32,236.28,8.72336487]
[1732088468137,4.1737,236.32,236.28,6.60936487]
[1732088468640,2.1138,236.31,236.26,8.72366487]
[1732088470845,4.1737,236.32,236.26,8.72366487]
[1732088471634,4.1737,236.32,236.28,6.60936487]
[1732088475947,1.2792,236.38,236.3,6.60936487]
[1732088476144,1.2792,236.38,236.22,2.53304409]
[1732088476448,2.06,236.37,236.32,8.72296487]
[1732088477048,2.06,236.37,236.26,2.1142]
[1732088477049,2.1135,236.35,236.26,2.1142]
[1732088477249,2.1135,236.35,236.3,6.60936487]
[1732088477849,2.06,236.37,236.3,6.60936487]
[1732088478051,2.1134,236.36,236.3,8.72326487]
[1732088479246,2.06,236.37,236.32,8.72296487]
[1732088480246,2.06,236.37,236.32,2.1136]
[1732088480546,2.06,236.37,236.32,8.72296487]
[1732088481648,2.06,236.36,236.32,8.72296487]
[1732088482147,2.06,236.36,236.32,2.1136]
[1732088482445,2.06,236.36,236.32,8.72296487]
[1732088484052,4.1734,236.36,236.3,2.1138]
[1732088484249,2.06,236.36,236.27,1.2138]
[1732088484551,2.06,236.36,236.29,6.60936487]
[1732088485253,2.1136,236.34,236.29,8.72336487]
[1732088486052,2.06,236.36,236.31,6.60936487]
[1732088486255,2.06,236.36,236.33,8.72296487]
[1732088486754,2.06,236.36,236.31,6.60936487]
[1732088487954,2.06,236.35,236.27,1.2138]
[1732088488160,2.06,236.35,236.34,6.60936487]
[1732088488750,2.06,236.35,236.3,2.1139]
[1732088488951,2.06,236.38,236.34,6.60936487]
[1732088489146,2.06,236.38,236.36,6.60936487]
[1732088491857,2.06,236.38,236.26,2.06]
[1732088491858,6.60936487,236.37,236.13,36.37065455]
[1732088492050,6.60936487,236.33,236.14,21.93978572]
[1732088492254,2.06,236.32,236.24,6.60936487]
[1732088492456,2.10762201,236.31,236.24,6.60936487]
[1732088492955,2.06,236.32,236.29,6.60936487]
[1732088493149,2.06,236.32,236.17,15.22295183]
[1732088493355,2.06,236.32,236.16,2.06]
[1732088493356,2.06,236.32,236.28,6.60936487]
[1732088493550,4.1737,236.32,236.28,6.60936487]
[1732088494655,2.06,236.32,236.3,6.60936487]
[1732088494856,3.4547,236.37,236.3,6.60936487]
[1732088494857,2.06,236.35,236.3,6.60936487]
[1732088495058,2.06,236.35,236.22,2.06]
[1732088495259,2.06,236.35,236.34,6.60936487]
[1732088495464,2.06,236.35,236.24,3.23326744]
[1732088495652,2.06,236.35,236.33,6.60936487]
[1732088496251,2.06,236.35,236.23,3.7063]
[1732088496561,2.06,236.35,236.24,7.36822689]
[1732088496752,2.06,236.35,236.31,6.60936487]
[1732088497361,2.1136,236.34,236.27,2.1141]
[1732088497555,2.1136,236.34,236.3,6.60936487]
[1732088498953,2.06,236.35,236.3,6.60936487]
[1732088499162,2.06,236.35,236.29,6.60936487]
[1732088499163,2.1136,236.33,236.29,6.60936487]
[1732088500761,4.1735,236.35,236.29,6.60936487]
[1732088500960,2.06,236.35,236.29,6.60936487]
[1732088502355,2.1135,236.34,236.29,6.60936487]
[1732088507362,2.06,236.35,236.23,2.413]
[1732088507564,2.1137,236.32,236.26,2.1142]
[1732088507765,2.1137,236.32,236.29,6.60936487]
[1732088507966,2.1137,236.32,236.23,2.413]
[1732088507967,2.06,236.35,236.27,6.60936487]
[1732088508167,2.1138,236.31,236.27,6.60936487]
[1732088508369,2.06,236.3,236.27,6.60936487]
[1732088510467,2.06,236.3,236.26,2.1142]
[1732088510664,2.06,236.3,236.27,6.60936487]
[1732088511868,2.06,236.3,236.14,1.2881]
[1732088512071,2.114,236.29,236.25,6.60936487]
[1732088512271,2.06,236.3,236.27,6.60936487]
[1732088512665,6.60936487,236.28,236.18,11.01753328]
[1732088512964,6.60936487,236.22,236.13,37.1195712]
[1732088513164,2.06,236.21,236.14,4.14825472]
[1732088513360,2.06,236.21,236.15,1.59535732]
[1732088513361,2.1151,236.17,236.15,1.59535732]
[1732088513559,2.06,236.16,236.13,37.1195712]
[1732088514374,2.06,236.16,236.13,6.60936487]
[1732088515872,2.06,236.16,236.1,2.1157]
[1732088516074,2.06,236.16,236.1,8.72506487]
[1732088516369,2.06,236.16,236.08,2.4863]
[1732088516667,2.1154,236.14,236.09,6.60936487]
[1732088517074,2.06,236.16,236.09,6.60936487]
[1732088517269,4.1752,236.16,236.09,6.60936487]
[1732088518861,4.1752,236.16,236.09,8.72516487]
[1732088521369,4.1752,236.16,236.11,6.60936487]
[1732088522369,1.1807,236.26,236.15,6.60936487]
[1732088522571,8.66936487,236.25,236.17,6.60936487]
[1732088523368,2.06,236.24,236.06,1.1774]
[1732088523564,2.1146,236.23,236.19,6.60936487]
[1732088523965,2.06,236.24,236.19,6.60936487]
[1732088524269,1.1807,236.26,236.21,6.60936487]
[1732088524465,2.06,236.25,236.21,6.60936487]
[1732088525379,30.46,236.28,236.12,4.75606624]
[1732088525380,2.06,236.28,236.12,4.75606624]
[1732088525677,2.06,236.29,236.24,6.60936487]
[1732088525872,6.60936487,236.34,236.24,6.60936487]
[1732088525873,2.06,236.28,236.24,6.60936487]
[1732088526573,2.06,236.28,236.26,6.60936487]
[1732088527376,2.06,236.28,236.26,8.72356487]
[1732088527981,2.06,236.32,236.26,6.60936487]
[1732088528176,2.06,236.32,236.28,6.60936487]
[1732088529674,2.06,236.32,236.27,2.1141]
[1732088530075,2.06,236.32,236.26,6.60936487]
[1732088530482,2.06,236.32,236.19,1.54195503]
[1732088530682,8.66936487,236.32,236.23,6.60936487]
[1732088531277,2.1138,236.31,236.23,8.72376487]
[1732088531483,8.66936487,236.32,236.23,6.60936487]
[1732088532782,8.66936487,236.32,236.23,8.72386487]
[1732088533587,6.60936487,236.29,236.14,1.2143]
[1732088533782,6.60936487,236.29,236.19,6.60936487]
[1732088534590,2.1144,236.25,236.19,8.72426487]
[1732088534787,2.1144,236.25,236.09,5.14228167]
[1732088534788,2.06,236.24,236.09,5.14228167]
[1732088534989,2.06,236.24,236.18,6.60936487]
[1732088535786,2.06,236.24,236.18,8.72426487]
[1732088536184,2.06,236.24,236.18,6.60936487]
[1732088537389,2.06,236.24,236.19,2.1149]
[1732088540697,1.0,236.28,236.2,6.60936487]
[1732088540885,2.06,236.27,236.2,6.60936487]
[1732088542086,2.1143,236.26,236.2,8.72406487]
[1732088546899,2.1143,236.26,236.2,2.1147]
[1732088554102,2.1143,236.26,236.21,2.1147]
[1732088554800,4.1743,236.27,236.2,8.72416487]
[1732088555207,2.1143,236.26,236.2,8.72416487]
[1732088555402,2.1143,236.26,236.21,2.1147]
[1732088559508,2.1143,236.26,236.21,8.72406487]
[1732088561713,2.1143,236.26,236.21,2.1147]
[1732088562408,2.1139,236.3,236.25,8.72366487]
[1732088562602,2.06,236.28,236.25,8.72366487]
[1732088566117,2.06,236.28,236.25,2.1143]
[1732088567625,2.06,236.27,236.25,8.72366487]
[1732088571323,2.06,236.27,236.25,2.1143]
[1732088571524,2.06,236.27,236.24,2.1144]
[1732088571818,2.06,236.27,236.21,6.60936487]
[1732088573429,4.1742,236.27,236.22,2.1145]
[1732088574425,2.06,236.27,236.24,2.1144]
[1732088575123,2.06,236.27,236.23,6.60936487]
[1732088575329,2.06,236.27,236.25,2.1143]
[1732088575625,2.06,236.27,236.23,6.60936487]
[1732088575928,2.06,236.27,236.24,2.1144]
[1732088581124,2.114,236.29,236.24,2.1144]
[1732088581329,2.06,236.28,236.24,2.1144]
[1732088582530,2.06,236.28,236.25,2.1143]
[1732088584632,2.06,236.28,236.25,8.72366487]
[1732088587528,2.06,236.28,236.25,6.60936487]
[1732088587735,2.06,236.28,236.27,2.1142]
[1732088587934,2.06,236.28,236.27,8.72356487]
[1732088589734,2.06,236.3,236.27,8.72356487]
[1732088590331,2.06,236.3,236.27,6.60936487]
[1732088591630,2.06,236.3,236.27,8.72356487]
[1732088593132,2.1137,236.32,236.27,8.72356487]
[1732088593335,2.06,236.31,236.27,8.72356487]
[1732088593935,0.18719,236.39,236.27,6.60936487]
[1732088594232,2.06,236.38,236.31,6.60936487]
[1732088594834,2.06,236.38,236.29,6.60936487]
[1732088595337,2.06,236.38,236.31,2.1138]
[1732088595735,8.66936487,236.38,236.29,6.60936487]
[1732088596335,2.06,236.38,236.29,6.60936487]
[1732088596534,8.66936487,236.38,236.29,6.60936487]
[1732088596932,6.60936487,236.36,236.22,3.22595182]
[1732088597130,6.60936487,236.36,236.27,6.60936487]
[1732088597340,6.60936487,236.34,236.25,6.60936487]
[1732088597539,2.06,236.33,236.25,6.60936487]
[1732088597740,2.1138,236.31,236.25,8.72366487]
[1732088598039,2.1138,236.31,236.25,6.60936487]
[1732088599241,2.1138,236.31,236.26,2.1142]
[1732088600637,2.1138,236.31,236.25,6.60936487]
[1732088600638,2.1138,236.31,236.25,8.72366487]
[1732088601043,2.06,236.3,236.25,8.72366487]
[1732088601241,2.06,236.3,236.26,2.1143]
[1732088607951,2.06,236.3,236.25,6.60936487]
[1732088608151,2.06,236.3,236.27,2.1142]
[1732088611653,2.06,236.3,236.26,2.1143]
[1732088612945,2.06,236.3,236.27,2.1142]
[1732088615655,2.06,236.3,236.26,2.1143]
[1732088619263,2.1141,236.28,236.18,2.495]
[1732088619460,2.1141,236.28,236.19,4.78323627]
[1732088619764,2.1141,236.28,236.2,8.16062307]
[1732088620061,2.1141,236.28,236.21,1.5512582]
[1732088620264,2.1141,236.28,236.22,2.1146]
[1732088622261,8.66936487,236.3,236.22,2.1146]
[1732088622465,2.1142,236.27,236.22,2.1146]
[1732088622760,8.66936487,236.3,236.22,2.1146]
[1732088623458,8.66936487,236.3,236.21,2.1147]
[1732088623662,8.66936487,236.3,236.21,8.72406487]
[1732088623663,6.60936487,236.28,236.21,8.72406487]
[1732088624361,2.1142,236.27,236.21,8.72406487]
[1732088625366,2.1142,236.27,236.21,2.1147]
[1732088625764,2.1143,236.26,236.21,2.1147]
[1732088625965,2.06,236.25,236.21,2.1147]
[1732088626470,2.06,236.25,236.2,6.60936487]
[1732088628370,2.06,236.25,236.21,2.1147]
[1732088629474,2.06,236.25,236.22,6.60936487]
[1732088631274,2.06,236.25,236.21,2.1147]
[1732088631575,2.06,236.25,236.21,8.72406487]
[1732088631778,2.06,236.25,236.18,2.495]
[1732088631972,2.06,236.25,236.21,2.1146]
[1732088633972,2.06,236.25,236.21,8.72396487]
[1732088634771,2.06,236.25,236.22,2.1146]
[1732088634976,2.06,236.25,236.21,6.60936487]
[1732088635382,2.06,236.25,236.22,2.1146]
[1732088635776,2.06,236.25,236.21,6.60936487]
[1732088635975,2.1148,236.2,236.04,5.86044822]
[1732088636181,2.06,236.19,236.07,2.5718]
[1732088636379,2.06,236.21,236.08,16.6232119]
[1732088636581,2.06,236.23,236.2,6.60936487]
[1732088637672,2.06,236.23,236.14,3.22329924]
[1732088637876,2.06,236.23,236.19,6.60936487]
[1732088638271,2.06,236.23,236.11,7.73115464]
[1732088638477,2.06,236.23,236.19,6.60936487]
[1732088640678,2.1146,236.22,236.07,2.5718]
[1732088640885,2.1146,236.22,236.17,6.60936487]
[1732088643677,2.1147,236.21,236.17,6.60936487]
[1732088644777,4.1746,236.23,236.17,6.60936487]
[1732088644978,2.06,236.23,236.17,6.60936487]
[1732088646383,2.1146,236.22,236.17,8.72446487]
[1732088649686,2.1146,236.22,236.19,6.60936487]
[1732088650385,2.06,236.23,236.19,6.60936487]
[1732088651486,4.1746,236.23,236.19,6.60936487]
[1732088652883,2.06,236.23,236.19,6.60936487]
[1732088653787,2.06,236.22,236.19,6.60936487]
[1732088654285,2.06,236.22,236.21,6.60936487]
[1732088656086,2.06,236.22,236.14,3.21663883]
[1732088656286,2.06,236.22,236.19,6.60936487]
[1732088656988,2.06,236.22,236.19,8.72426487]
[1732088658784,2.06,236.22,236.17,2.115]
[1732088659091,2.06,236.22,236.16,6.60936487]
[1732088659489,2.06,236.22,236.17,6.60936487]
[1732088660387,2.06,236.22,236.18,2.115]
[1732088660594,2.06,236.22,236.18,8.72436487]
[1732088662489,2.1147,236.21,236.15,2.1152]
[1732088662693,2.1147,236.21,236.17,6.60936487]
[1732088665590,2.06,236.22,236.13,1.2311]
[1732088665795,2.1149,236.19,236.15,6.60936487]
[1732088666501,2.06,236.22,236.13,1.2311]
[1732088666796,2.06,236.22,236.14,8.16084096]
[1732088666996,2.06,236.22,236.14,6.60936487]
[1732088667386,2.1148,236.2,236.14,6.60936487]
[1732088667590,2.06,236.22,236.14,6.60936487]
[1732088668396,2.115,236.18,236.14,6.60936487]
[1732088668701,2.06,236.17,236.14,6.60936487]
[1732088669999,2.06,236.17,236.07,2.5718]
[1732088670295,2.06,236.17,236.13,6.60936487]
[1732088670693,2.06,236.17,236.08,7.73984352]
[1732088670894,8.66936487,236.17,236.09,11.38786711]
[1732088671197,8.66936487,236.17,236.07,2.5718]
[1732088671198,8.66936487,236.17,236.1,1.55284472]
[1732088671394,2.1156,236.11,236.06,1.2289]
[1732088671598,4.1756,236.11,236.07,8.16292161]
[1732088671794,4.1756,236.11,236.08,1.55355674]
[1732088671999,4.1756,236.11,236.09,1.55355674]
[1732088672194,4.1756,236.11,236.07,6.60936487]
[1732088672401,4.1756,236.11,236.08,1.55346498]
[1732088672598,4.1756,236.11,236.07,6.60936487]
[1732088672897,4.1756,236.11,236.08,1.55294914]
[1732088673098,4.1756,236.11,236.07,6.60936487]
[1732088673403,2.06,236.11,236.08,1.55293795]
[1732088673603,2.06,236.11,236.07,8.72536487]
[1732088673792,2.06,236.11,236.09,6.60936487]
[1732088677400,2.06,236.11,236.07,8.72536487]
[1732088677607,2.06,236.11,236.08,1.55000446]
[1732088677902,2.06,236.11,236.07,8.72536487]
[1732088678102,2.06,236.11,236.08,1.55003175]
[1732088678407,2.06,236.11,236.07,8.72536487]
[1732088679899,2.06,236.11,236.09,6.60936487]
[1732088680408,2.06,236.11,236.1,2.1157]
[1732088683201,2.06,236.11,236.1,8.72506487]
[1732088684404,2.06,236.11,236.08,8.72516487]
[1732088684601,2.06,236.11,236.09,1.54865436]
[1732088684805,2.06,236.11,236.08,6.60936487]
[1732088685101,2.06,236.11,236.08,8.72526487]
[1732088685903,2.06,236.11,236.09,2.1158]
[1732088686905,2.06,236.11,236.08,6.60936487]
[1732088687113,2.06,236.11,236.07,2.1159]
[1732088687314,2.06,236.11,236.08,1.5492112]
[1732088687513,2.06,236.11,236.07,8.72526487]
[1732088687713,2.06,236.11,236.08,1.54933478]
[1732088687914,2.06,236.11,236.07,8.72526487]
[1732088688213,2.06,236.11,236.08,1.54925405]
[1732088688515,2.06,236.11,236.08,2.1159]
[1732088688914,2.06,236.11,236.07,6.60936487]
[1732088689209,2.06,236.11,236.08,3.66503077]
[1732088689511,2.06,236.11,236.08,2.1159]
[1732088691215,2.06,236.11,236.09,6.60936487]
[1732088691415,2.06,236.11,236.09,8.72516487]
[1732088697415,2.1152,236.15,236.09,8.72516487]
[1732088697720,2.06,236.14,236.09,8.72516487]
[1732088699819,4.1753,236.14,236.09,8.72516487]
[1732088700020,8.66936487,236.14,235.99,4.5728]
[1732088700217,2.1155,236.12,236.05,6.60936487]
[1732088700419,2.1155,236.12,236.06,1.54943523]
[1732088700623,2.1155,236.12,236.07,1.54943523]
[1732088700815,2.1155,236.12,236.05,6.60936487]
[1732088701120,2.1154,236.13,236.06,8.15917303]
[1732088701320,2.06,236.14,236.1,6.60936487]
[1732088701520,2.06,236.14,235.99,2.5128]
[1732088701824,2.06,236.14,236.09,6.60936487]
[1732088702318,2.06,236.14,236.1,3.66513193]
[1732088702524,2.06,236.14,236.11,6.60936487]
[1732088703420,2.06,236.14,236.11,8.72496487]
[1732088703621,2.06,236.14,236.11,2.1156]
[1732088704724,2.115,236.18,236.13,6.60936487]
[1732088704922,2.06,236.17,236.13,6.60936487]
[1732088705117,2.06,236.18,236.13,6.60936487]
[1732088706430,2.06,236.18,236.13,8.72476487]
[1732088709430,2.06,236.18,236.14,1.5507622]
[1732088709626,2.06,236.18,236.13,8.72476487]
[1732088709827,2.06,236.18,236.14,1.55070197]
[1732088710024,6.60936487,236.17,236.07,1.2029]
[1732088710228,6.60936487,236.17,236.08,11.33727153]
[1732088710430,6.60936487,236.17,236.09,1.55095293]
[1732088710722,6.60936487,236.17,236.1,1.55095293]
[1732088710926,6.60936487,236.17,236.08,6.60936487]
[1732088711125,6.60936487,236.17,236.11,1.55132364]
[1732088711327,6.60936487,236.17,236.09,2.1158]
[1732088711524,6.60936487,236.17,236.1,1.55160107]
[1732088711730,6.60936487,236.17,236.11,1.55160107]
[1732088711934,6.60936487,236.17,236.09,2.1158]
[1732088712233,6.60936487,236.17,236.1,1.55161667]
[1732088712433,6.60936487,236.17,236.09,2.1158]
[1732088712434,6.60936487,236.17,236.11,1.55161667]
[1732088712635,6.60936487,236.17,236.09,2.1158]
[1732088712827,6.60936487,236.17,236.1,1.55222407]
[1732088713033,6.60936487,236.17,236.11,1.55222407]
[1732088713232,6.60936487,236.17,236.08,6.60936487]
[1732088713429,2.1153,236.15,236.1,2.1157]
[1732088713632,2.1153,236.15,236.11,1.55238605]
[1732088713835,2.1153,236.15,236.1,2.1157]
[1732088714042,6.60936487,236.14,236.11,1.55246889]
[1732088714231,2.06,236.13,236.06,7.87356487]
[1732088714431,2.06,236.13,236.07,4.7332344]
[1732088714633,2.06,236.13,236.08,4.7332344]
[1732088714834,2.06,236.13,236.09,1.55270552]
[1732088715034,2.06,236.13,236.1,1.55270552]
[1732088715237,4.1755,236.13,236.11,1.55270552]
[1732088715435,4.1755,236.13,236.08,2.1159]
[1732088715641,4.1755,236.13,236.09,1.55306477]
[1732088715841,4.1755,236.13,236.1,1.55306477]
[1732088716038,4.1755,236.13,236.11,1.55306477]
[1732088716238,4.1755,236.13,236.08,2.1159]
[1732088716439,4.1755,236.13,236.09,1.55340367]
[1732088716632,4.1755,236.13,236.1,1.55340367]
[1732088716940,4.1755,236.13,236.11,1.55340367]
[1732088717140,2.06,236.13,236.08,2.1159]
[1732088717641,2.06,236.13,236.09,1.55395871]
[1732088717839,2.06,236.13,236.1,1.55395871]
[1732088718040,2.06,236.13,236.11,1.55395871]
[1732088718235,2.06,236.13,236.08,2.1159]
[1732088718436,2.06,236.13,236.09,1.55405197]
[1732088718636,2.06,236.13,236.1,1.55405197]
[1732088718943,2.06,236.13,236.11,1.55405197]
[1732088719240,2.06,236.13,236.08,2.1159]
[1732088719544,2.06,236.13,236.09,1.55398206]
[1732088719842,2.06,236.13,236.1,1.55398206]
[1732088720045,2.06,236.13,236.11,1.55398206]
[1732088720342,2.06,236.13,236.08,2.1159]
[1732088720544,2.06,236.13,236.09,1.55396428]
[1732088720740,2.06,236.13,236.08,2.1159]
[1732088720945,2.06,236.13,236.09,1.55400407]
[1732088721147,2.06,236.13,236.1,1.55409911]
[1732088721346,2.06,236.13,236.11,1.55409911]
[1732088721547,2.06,236.13,236.12,1.55409911]
[1732088721845,2.06,236.13,236.08,2.1159]
[1732088722046,2.06,236.13,236.09,1.55369429]
[1732088722246,2.06,236.13,236.1,1.55369429]
[1732088722442,2.06,236.13,236.11,1.55369429]
[1732088722643,2.06,236.13,236.09,8.72516487]
[1732088722947,2.06,236.13,236.1,1.55374091]
[1732088723146,2.06,236.13,236.09,8.72516487]
[1732088723147,2.06,236.13,236.11,1.55374091]
[1732088723347,2.06,236.13,236.09,8.72516487]
[1732088723548,2.06,236.13,236.1,1.55384066]
[1732088723846,2.06,236.13,236.11,1.55384066]
[1732088724041,2.08486588,236.19,236.12,1.55384066]
[1732088724239,6.60936487,236.27,236.17,6.60936487]